fUST/lending_fUST_20250901
["ID","MTS","AMOUNT","RATE_DAILY","PERIOD"]
[382657572,1756697465839,-169.96142,0.00017123,2]
[382657573,1756697465850,-480.0,0.00017123,2]
[382657574,1756697465859,-433.384332,0.00017123,2]
[382657575,1756697465941,-46.615668,0.00017123,2]
[382657576,1756697465951,-402.064332,0.00017123,2]
[382657577,1756697466354,-5000.0,0.00015918,2]
[382657578,1756697466367,-481.18138772,0.00015926,2]
[382657579,1756697466382,-480.0,0.00015926,2]
[382657580,1756697466397,-480.0,0.00015926,2]
[382657581,1756697466412,-480.0,0.00015926,2]
[382657582,1756697466428,-240.49796893,0.00016027,2]
[382657583,1756697466551,-240.88709891,0.00016027,2]
[382657584,1756697466563,-466.23478909,0.00016027,2]
[382657586,1756697468949,5000.0,0.00015918,2]
[382657591,1756697483699,-179.128694,0.00015765,2]
[382657593,1756697485253,-244.10395754,0.00015765,2]
[382657595,1756697488041,-249.28840296,0.00015765,2]
[382657598,1756697492294,-438.93727943,0.00015607,2]
[382657600,1756697495988,-267.06083867,0.00015607,2]
[382657603,1756697499929,-245.36447221,0.00015607,2]
[382657604,1756697504029,-176.25948047,0.00015607,2]
[382657606,1756697509125,-160.86102226,0.00015607,2]
[382657609,1756697511867,-216.49099546,0.00015607,2]
[382657615,1756697516838,-3495.0259115,0.00015607,2]
[382657616,1756697517054,-4327.4789455,0.00015765,2]
[382657617,1756697517086,-295.0,0.00015924,2]
[382657618,1756697517116,-275.052109,0.00015925,2]
[382657619,1756697517447,-204.947891,0.00015925,2]
[382657620,1756697517478,-483.65722439,0.00015925,2]
[382657621,1756697517508,-481.26547292,0.00015925,2]
[382657622,1756697517538,-480.0,0.00015925,2]
[382657623,1756697517565,-481.41112014,0.00015925,2]
[382657624,1756697517596,-481.21143917,0.00015925,2]
[382657625,1756697517627,-480.0,0.00015925,2]
[382657626,1756697517655,-482.29031828,0.00015925,2]
[382657627,1756697517683,-481.61529543,0.00015925,2]
[382657628,1756697517710,-480.0,0.00015925,2]
[382657629,1756697517738,-447.21247734,0.00015926,2]
[382657630,1756697519561,160.0,0.00027397,120]
[382657633,1756697522492,-32.78752266,0.00015926,2]
[382657634,1756697522524,-480.0,0.00015926,2]
[382657635,1756697522556,-480.0,0.00015926,2]
[382657636,1756697522587,-480.0,0.00015926,2]
[382657637,1756697522619,-480.0,0.00015926,2]
[382657638,1756697522648,-482.81230584,0.00015926,2]
[382657639,1756697522676,-480.0,0.00015926,2]
[382657640,1756697522705,-480.0,0.00015926,2]
[382657641,1756697522734,-480.000001,0.00015926,2]
[382657642,1756697522762,-480.0,0.00015926,2]
[382657643,1756697522792,-480.0,0.00015926,2]
[382657644,1756697522955,-480.0,0.00015926,2]
[382657645,1756697522983,-480.0,0.00015926,2]
[382657646,1756697523013,-480.0,0.00015926,2]
[382657647,1756697523042,-480.0,0.00015926,2]
[382657648,1756697523072,-480.0,0.00015926,2]
[382657649,1756697523102,-480.0,0.00015926,2]
[382657650,1756697523134,-480.0,0.00015926,2]
[382657651,1756697523166,-480.0,0.00015926,2]
[382657652,1756697523195,-480.0,0.00015926,2]
[382657653,1756697523227,-618.13,0.00015926,2]
[382657654,1756697523393,-300.0,0.00015925,2]
[382657655,1756697523423,-480.0,0.00015926,2]
[382657656,1756697523455,-480.0,0.00015926,2]
[382657657,1756697523483,-480.0,0.00015926,2]
[382657658,1756697523513,-480.0,0.00015926,2]
[382657659,1756697523543,-480.0,0.00015926,2]
[382657660,1756697523572,-480.0,0.00015926,2]
[382657661,1756697523602,-480.0,0.00015926,2]
[382657662,1756697523632,-481.8779126,0.00015926,2]
[382657663,1756697523661,-480.0,0.00015926,2]
[382657664,1756697523690,-276.2541748,0.00015926,2]
[382657665,1756697523941,-203.7458252,0.00015926,2]
[382657666,1756697523968,-480.0,0.00015926,2]
[382657667,1756697523998,-659.0,0.00015926,2]
[382657668,1756697524026,-932.61,0.00015926,2]
[382657669,1756697524055,-999.95,0.00015926,2]
[382657670,1756697524084,-846.77,0.00015926,2]
[382657671,1756697524112,-480.0,0.00015926,2]
[382657673,1756697524144,-164.0183496,0.00015926,2]
[382657675,1756697524422,-467.8216504,0.00015926,2]
[382657676,1756697524454,-480.0,0.00015926,2]
[382657677,1756697524483,-528.24,0.00015926,2]
[382657678,1756697524513,-856.82,0.00015926,2]
[382657679,1756697524541,-480.0,0.00015926,2]
[382657680,1756697524571,-480.0,0.00015926,2]
[382657681,1756697524601,-673.77,0.00015926,2]
[382657682,1756697524631,-480.0,0.00015926,2]
[382657683,1756697524661,-480.0,0.00015926,2]
[382657684,1756697524772,-480.0,0.00015926,2]
[382657685,1756697524802,-546.6,0.00015926,2]
[382657686,1756697524831,-467.95252676,0.00015926,2]
[382657687,1756697524861,-480.0,0.00015926,2]
[382657688,1756697524889,-480.0,0.00015926,2]
[382657689,1756697524919,-897.97,0.00015926,2]
[382657690,1756697524949,-972.43,0.00015926,2]
[382657691,1756697524978,-514.89494648,0.00015926,2]
[382657692,1756697525092,-320.31505352,0.00015926,2]
[382657693,1756697525121,-480.0,0.00015926,2]
[382657694,1756697525150,-480.0,0.00015926,2]
[382657695,1756697525178,-480.0,0.00015926,2]
[382657696,1756697525208,-2276.57989296,0.00015926,2]
[382657699,1756697526673,-1926.22010704,0.00015926,2]
[382657700,1756697526819,-160.8951712,0.00015926,2]
[382657704,1756697532546,160.0,0.00027397,120]
[382657707,1756697545758,160.0,0.00027397,120]
[382657708,1756697561847,160.0,0.00027397,120]
[382657709,1756697571360,-168.79746656,0.00015766,2]
[382657710,1756697574303,-187.78006525,0.00015766,2]
[382657711,1756697576899,-4643.42246819,0.00015766,2]
[382657712,1756697576946,-205.75755152,0.00015905,2]
[382657713,1756697579877,160.0,0.00027397,120]
[382657714,1756697579975,713.16506362,0.00015905,2]
[382657715,1756697579999,4286.83493638,0.00015905,2]
[382657716,1756697582000,-388.86771905,0.00015905,2]
[382657717,1756697583087,300.0,0.00015904,2]
[382657718,1756697589037,-177.72945637,0.00015905,2]
[382657719,1756697593728,-187.49038957,0.00015905,2]
[382657720,1756697594636,250.28,0.00015895,3]
[382657721,1756697595714,-265.91862955,0.00015905,2]
[382657722,1756697596758,182.0,0.00027397,120]
[382657723,1756697597318,-229.51106449,0.00015905,2]
[382657724,1756697599470,-320.61407124,0.00015905,2]
[382657725,1756697601169,-168.60608282,0.00015905,2]
[382657726,1756697603382,5000.0,0.00015905,2]
[382657727,1756697604366,-314.25209458,0.00015905,2]
[382657728,1756697605266,162.89506362,0.00015895,3]
[382657729,1756697605289,33.97493638,0.00015895,3]
[382657730,1756697606212,-164.69517072,0.00015905,2]
[382657731,1756697612034,-205.77018515,0.00015905,2]
[382657732,1756697615882,759.26,0.00015895,3]
[382657733,1756697616485,-232.12252053,0.00015905,2]
[382657734,1756697619658,-171.33767119,0.00015905,2]
[382657735,1756697622390,-197.77050349,0.00015905,2]
[382657736,1756697625735,-329.31977899,0.00015905,2]
[382657737,1756697626037,5000.0,0.00015905,2]
[382657738,1756697627127,-3493.61,0.00015905,2]
[382657739,1756697627214,-10000.01,0.00015905,2]
[382657740,1756697627346,-10000.01,0.00015905,2]
[382657741,1756697627881,-10000.01,0.00015905,2]
[382657742,1756697627997,-10000.01,0.00015905,2]
[382657743,1756697628124,-10000.01,0.00015905,2]
[382657744,1756697628243,-10000.01,0.00015905,2]
[382657745,1756697628361,-10000.01,0.00015905,2]
[382657746,1756697628461,-10000.01,0.00015905,2]
[382657747,1756697630117,-221.79796346,0.00015905,2]
[382657748,1756697632868,-362.85544031,0.00015905,2]
[382657749,1756697636046,-152.0,0.00015905,2]
[382657750,1756697637262,-10000.01,0.00015904,2]
[382657751,1756697637275,-10000.01,0.00015904,2]
[382657752,1756697637293,-10000.01,0.00015904,2]
[382657753,1756697637327,-10000.01,0.00015904,2]
[382657754,1756697637451,-122.40129454,0.00015904,2]
[382657755,1756697640134,-297.52407789,0.00015905,2]
[382657756,1756697642969,300.0,0.00015904,2]
[382657757,1756697643916,-152.50946757,0.00015905,2]
[382657758,1756697644046,666.0,0.00014949,2]
[382657759,1756697645510,-240.53584913,0.00015905,2]
[382657760,1756697647438,-162.42712842,0.00015905,2]
[382657761,1756697649787,-184.0,0.00015905,2]
[382657762,1756697652415,-254.34940245,0.00015905,2]
[382657763,1756697654488,-284.90876191,0.00015905,2]
[382657764,1756697656109,-265.31504505,0.00015905,2]
[382657765,1756697658326,270.33256702,0.00015825,2]
[382657766,1756697660476,-167.30690623,0.00015905,2]
[382657767,1756697662592,-268.1740201,0.00015905,2]
[382657768,1756697665832,-205.47882809,0.00015905,2]
[382657769,1756697668566,-160.0,0.00015905,2]
[382657770,1756697670456,-200.55364376,0.00015905,2]
[382657771,1756697671921,500.0,0.00015904,2]
[382657772,1756697671971,500.0,0.00015904,2]
[382657773,1756697672198,500.0,0.00015904,2]
[382657774,1756697672342,500.0,0.00015904,2]
[382657775,1756697672373,500.0,0.00015904,2]
[382657776,1756697672464,500.0,0.00015904,2]
[382657777,1756697672497,500.0,0.00015904,2]
[382657778,1756697672526,417.74449911,0.00015904,2]
[382657779,1756697672630,500.0,0.00015904,2]
[382657780,1756697672894,308.99294345,0.00015904,2]
[382657781,1756697672940,500.0,0.00015904,2]
[382657782,1756697672970,500.0,0.00015904,2]
[382657783,1756697672999,500.0,0.00015904,2]
[382657784,1756697673026,462.12776844,0.00015904,2]
[382657785,1756697673063,500.0,0.00015904,2]
[382657786,1756697673109,500.0,0.00015904,2]
[382657787,1756697673138,484.98980505,0.00015904,2]
[382657788,1756697673167,345.01982785,0.00015904,2]
[382657789,1756697673190,154.98017215,0.00015904,2]
[382657790,1756697673230,500.0,0.00015904,2]
[382657791,1756697673279,500.0,0.00015904,2]
[382657792,1756697673310,500.0,0.00015904,2]
[382657793,1756697673355,500.0,0.00015904,2]
[382657794,1756697673395,500.0,0.00015904,2]
[382657795,1756697673439,500.0,0.00015904,2]
[382657796,1756697673478,457.1045598,0.00015904,2]
[382657797,1756697673534,500.0,0.00015904,2]
[382657798,1756697673573,500.0,0.00015904,2]
[382657799,1756697675957,157.0,8.4e-07,2]
[382657800,1756697676767,-176.52133694,0.00015905,2]
[382657801,1756697677021,157.0,8.4e-07,2]
[382657802,1756697678065,157.0,8.4e-07,2]
[382657803,1756697679186,157.0,8.4e-07,2]
[382657804,1756697680167,-326.37736295,0.00015905,2]
[382657805,1756697680310,157.0,8.4e-07,2]
[382657806,1756697681345,157.0,8.4e-07,2]
[382657807,1756697682223,541.80468988,0.00015904,2]
[382657808,1756697682436,157.0,8.4e-07,2]
[382657809,1756697683578,157.0,8.4e-07,2]
[382657810,1756697685272,157.0,8.4e-07,2]
[382657811,1756697702640,300.0,0.00015904,2]
[382657812,1756697702677,300.0,0.00015904,2]
[382657813,1756697703004,300.0,0.00015904,2]
[382657814,1756697704050,1200.0,0.00015904,2]
[382657815,1756697728688,1333.12057817,0.00015905,2]
[382657816,1756697728712,3666.87942183,0.00015905,2]
[382657818,1756697751710,5000.0,0.00015905,2]
[382657819,1756697759761,500.0,0.00015904,2]
[382657820,1756697760075,500.0,0.00015904,2]
[382657821,1756697760109,333.13057817,0.00015904,2]
[382657822,1756697760133,166.86942183,0.00015904,2]
[382657823,1756697762878,300.0,0.00015904,2]
[382657824,1756697774834,5000.0,0.00015905,2]
[382657825,1756697786979,500.0,0.00015904,2]
[382657826,1756697787024,500.0,0.00015904,2]
[382657827,1756697787065,500.0,0.00015904,2]
[382657828,1756697787100,394.49125666,0.00015904,2]
[382657829,1756697787135,500.0,0.00015904,2]
[382657830,1756697787185,500.0,0.00015904,2]
[382657831,1756697787476,500.0,0.00015904,2]
[382657832,1756697787562,500.0,0.00015904,2]
[382657833,1756697787591,500.0,0.00015904,2]
[382657834,1756697788051,138.64932151,0.00015904,2]
[382657835,1756697788075,361.35067849,0.00015904,2]
[382657836,1756697788191,500.0,0.00015904,2]
[382657837,1756697788271,500.0,0.00015904,2]
[382657838,1756697788339,500.0,0.00015904,2]
[382657839,1756697788403,500.0,0.00015904,2]
[382657840,1756697788476,500.0,0.00015904,2]
[382657841,1756697788713,-7383.46191059,0.00015905,2]
[382657842,1756697788742,-10000.01,0.00015905,2]
[382657843,1756697788779,-10000.01,0.00015905,2]
[382657844,1756697788841,-10000.01,0.00015905,2]
[382657845,1756697788868,-10000.01,0.00015905,2]
[382657846,1756697788907,-10000.01,0.00015905,2]
[382657847,1756697797376,-480.0,0.00015904,2]
[382657848,1756697797406,-160.0,0.00015905,2]
[382657849,1756697797451,-8720.01,0.00015905,2]
[382657850,1756697797479,-10000.01,0.00015905,2]
[382657851,1756697797661,-10000.01,0.00015905,2]
[382657852,1756697797766,-10000.01,0.00015905,2]
[382657853,1756697797901,-10000.01,0.00015905,2]
[382657854,1756697798010,-10000.01,0.00015905,2]
[382657855,1756697798139,-3425.01627417,0.00015905,2]
[382657856,1756697798162,-3149.97745166,0.00015905,2]
[382657857,1756697798253,-5000.0,0.00015909,2]
[382657858,1756697798287,-0.01,0.00015925,2]
[382657859,1756697798364,-5000.0,0.00015745,2]
[382657860,1756697798404,-0.01,0.00015925,2]
[382657861,1756697798460,-10000.01,0.00015925,2]
[382657862,1756697807763,-216.38463683,0.00015745,2]
[382657863,1756697808965,1000.0,0.00014972,2]
[382657864,1756697812492,-242.50788465,0.00015745,2]
[382657865,1756697815036,-203.86458159,0.00015745,2]
[382657866,1756697817274,-1820.70454333,0.00015588,2]
[382657867,1756697817303,-2021.35801641,0.00015745,2]
[382657868,1756697817339,-2315.88488052,0.00015745,2]
[382657869,1756697817412,-500.0,0.00015904,2]
[382657870,1756697817440,-482.14472547,0.00015904,2]
[382657871,1756697817469,-480.0,0.00015904,2]
[382657872,1756697817497,-480.0,0.00015904,2]
[382657873,1756697817574,-6115.72054906,0.00015925,2]
[382657874,1756697817599,-10000.01,0.00015925,2]
[382657875,1756697817749,-10000.01,0.00015925,2]
[382657876,1756697817875,-10000.01,0.00015925,2]
[382657877,1756697818120,-3884.21945094,0.00015925,2]
[382657878,1756697818149,-1031.57109812,0.00015925,2]
[382657879,1756697818180,-168.42890188,0.00015925,2]
[382657880,1756697818208,-1214.3,0.00015925,2]
[382657881,1756697818236,-480.0,0.00015925,2]
[382657882,1756697818264,-646.86,0.00015925,2]
[382657883,1756697818293,-480.0,0.00015925,2]
[382657884,1756697818322,-762.26,0.00015925,2]
[382657885,1756697818350,-923.69,0.00015925,2]
[382657886,1756697818377,-168.93219624,0.00015925,2]
[382657887,1756697818493,-311.06780376,0.00015925,2]
[382657888,1756697818522,-974.68,0.00015925,2]
[382657889,1756697818550,-1094.54,0.00015925,2]
[382657890,1756697818763,-500.0,0.00015925,2]
[382657891,1756697818793,-656.78,0.00015925,2]
[382657892,1756697818819,-480.0,0.00015925,2]
[382657893,1756697818845,-482.4630958,0.00015925,2]
[382657894,1756697818873,-480.0,0.00015925,2]
[382657895,1756697819010,-480.0,0.00015925,2]
[382657896,1756697819039,-480.0,0.00015925,2]
[382657897,1756697819068,-480.0,0.00015925,2]
[382657898,1756697819100,-966.48,0.00015925,2]
[382657899,1756697819130,-697.0,0.00015925,2]
[382657900,1756697819158,-480.0,0.00015925,2]
[382657901,1756697819186,-480.0,0.00015925,2]
[382657902,1756697819215,-545.42,0.00015925,2]
[382657903,1756697819245,-302.21,0.00015925,2]
[382657904,1756697819317,-177.79,0.00015925,2]
[382657905,1756697819345,-721.56,0.00015925,2]
[382657906,1756697819372,-480.0,0.00015925,2]
[382657907,1756697819401,-2244.66,0.00015925,2]
[382657908,1756697819430,-548.58,0.00015925,2]
[382657909,1756697819458,-534.47,0.00015925,2]
[382657910,1756697820061,-189.59890188,0.00015925,2]
[382657911,1756697820076,-534.47,0.00015925,2]
[382657912,1756697820090,-257.17109812,0.00015925,2]
[382657913,1756697820100,-328.71890188,0.00015925,2]
[382657914,1756697827360,-5000.0,0.00015766,2]
[382657915,1756697827395,-0.01,0.00015904,2]
[382657916,1756697827439,-479.99,0.00015904,2]
[382657917,1756697827474,-1200.0,0.00015923,2]
[382657918,1756697827503,-500.0,0.00015924,2]
[382657919,1756697827537,-500.0,0.00015924,2]
[382657920,1756697827566,-500.0,0.00015924,2]
[382657921,1756697827596,-500.0,0.00015924,2]
[382657922,1756697827627,-493.31907105,0.00015924,2]
[382657923,1756697827656,-500.0,0.00015924,2]
[382657924,1756697827684,-153.3918579,0.00015924,2]
[382657925,1756697827782,-346.6081421,0.00015924,2]
[382657926,1756697827809,-500.0,0.00015924,2]
[382657927,1756697827837,-260.30109812,0.00015925,2]
[382657928,1756697827864,-480.0,0.00015925,2]
[382657929,1756697827891,-480.0,0.00015925,2]
[382657930,1756697827917,-480.0,0.00015925,2]
[382657931,1756697827947,-925.49,0.00015925,2]
[382657932,1756697827976,-300.0,0.00015925,2]
[382657933,1756697828003,-1209.33151956,0.00015925,2]
[382657934,1756697828107,-36.54848044,0.00015925,2]
[382657935,1756697828136,-480.0,0.00015926,2]
[382657936,1756697828167,-157.4141734,0.00015926,2]
[382657937,1756697828195,-480.0,0.00015926,2]
[382657938,1756697828224,-480.0,0.00015926,2]
[382657939,1756697828252,-480.0,0.00015926,2]
[382657940,1756697828280,-481.91405631,0.00015926,2]
[382657941,1756697828308,-270.98948673,0.00015926,2]
[382657942,1756697828341,-480.0,0.00015926,2]
[382657943,1756697828372,-480.0,0.00015926,2]
[382657944,1756697828402,-623.89760624,0.00015926,2]
[382657945,1756697828540,-1098.48239376,0.00015926,2]
[382657946,1756697828570,-481.54031166,0.00015926,2]
[382657947,1756697828600,-480.0,0.00015926,2]
[382657948,1756697828629,-480.0,0.00015926,2]
[382657949,1756697828660,-633.6,0.00015926,2]
[382657950,1756697828688,-833.41,0.00015926,2]
[382657951,1756697828716,-480.0,0.00015926,2]
[382657952,1756697828744,-480.0,0.00015926,2]
[382657953,1756697828948,-480.0,0.00015926,2]
[382657954,1756697829054,-688.1766423,0.00015926,2]
[382657955,1756697829245,-1376.3532846,0.00015926,2]
[382657956,1756697829406,-2752.7065692,0.00015926,2]
[382657957,1756697829564,-4494.5968616,0.00015926,2]
[382657958,1756697829967,-1279.21461573,0.00015926,2]
[382657959,1756697829986,-214.14538427,0.00015926,2]
[382657960,1756697829996,-480.0,0.00015926,2]
[382657961,1756697830006,-480.0,0.00015926,2]
[382657962,1756697830016,-501.47,0.00015926,2]
[382657963,1756697830025,-480.0,0.00015926,2]
[382657964,1756697830034,-480.0,0.00015926,2]
[382657965,1756697830044,-480.0,0.00015926,2]
[382657966,1756697830054,-480.0,0.00015926,2]
[382657967,1756697830064,-480.0,0.00015926,2]
[382657968,1756697830074,-597.14,0.00015926,2]
[382657969,1756697830083,-630.97,0.00015926,2]
[382657970,1756697830094,-502.4,0.00015926,2]
[382657971,1756697830103,-480.0,0.00015926,2]
[382657972,1756697830114,-480.0,0.00015926,2]
[382657973,1756697830125,-480.0,0.00015926,2]
[382657974,1756697830135,-495.49,0.00015926,2]
[382657975,1756697830147,-480.0,0.00015926,2]
[382657976,1756697830156,-483.5667918,0.00015926,2]
[382657977,1756697830167,-606.65118163,0.00015926,2]
[382657978,1756697830196,-573.19881837,0.00015926,2]
[382657979,1756697830206,-1000.0,0.00015926,2]
[382657980,1756697830215,-480.0,0.00015926,2]
[382657981,1756697830226,-480.0,0.00015926,2]
[382657982,1756697830235,-708.17,0.00015926,2]
[382657983,1756697830246,-480.0,0.00015926,2]
[382657984,1756697830257,-480.0,0.00015926,2]
[382657985,1756697830266,-779.2,0.00015926,2]
[382657986,1756697830276,-603.42,0.00015926,2]
[382657987,1756697830286,-993.64,0.00015926,2]
[382657988,1756697830295,-480.0,0.00015926,2]
[382657989,1756697830305,-481.68766409,0.00015926,2]
[382657990,1756697830314,-1084.34023294,0.00015926,2]
[382657991,1756697830349,-1869.46976706,0.00015926,2]
[382657992,1756697830359,-879.85,0.00015926,2]
[382657993,1756697830369,-481.90217232,0.00015926,2]
[382657994,1756697830379,-529.13,0.00015926,2]
[382657995,1756697830389,-951.18,0.00015926,2]
[382657996,1756697830403,-574.66,0.00015926,2]
[382657997,1756697830413,-480.0,0.00015926,2]
[382657998,1756697830423,-587.33,0.00015926,2]
[382657999,1756697830433,-480.0,0.00015926,2]
[382658000,1756697830444,-413.78149142,0.00015926,2]
[382658001,1756697830465,-2909.20850858,0.00015926,2]
[382658002,1756697830475,-480.0,0.00015926,2]
[382658003,1756697830485,-480.0,0.00015926,2]
[382658004,1756697830497,-480.0,0.00015926,2]
[382658005,1756697830507,-145.38835302,0.00015926,2]
[382658006,1756697830544,-1010.8162768,0.00015926,2]
[382658007,1756697840923,-154.0452109,0.00015765,2]
[382658008,1756697844888,-218.6168053,0.00015765,2]
[382658009,1756697850978,-160.41445315,0.00015607,2]
[382658010,1756697852897,821.8712919,0.00014925,2]
[382658011,1756697853196,-155.18115816,0.00015607,2]
[382658012,1756697854778,-200.0,0.00015607,2]
[382658013,1756697856351,-274.75314131,0.00015607,2]
[382658014,1756697860796,-270.21770905,0.00015607,2]
[382658015,1756697865233,-155.54805451,0.00015607,2]
[382658016,1756697867344,-3783.88548382,0.00015607,2]
[382658017,1756697867406,-1610.36774046,0.00015765,2]
[382658018,1756697867526,-3016.97024334,0.00015765,2]
[382658019,1756697867559,-236.54099616,0.00015826,2]
[382658020,1756697867586,-500.0,0.00015904,2]
[382658021,1756697867617,-500.0,0.00015904,2]
[382658022,1756697867645,-500.0,0.00015904,2]
[382658023,1756697867756,-500.0,0.00015904,2]
[382658024,1756697867784,-500.0,0.00015904,2]
[382658025,1756697867812,-500.0,0.00015904,2]
[382658026,1756697867841,-500.0,0.00015904,2]
[382658027,1756697867868,-500.0,0.00015904,2]
[382658028,1756697867895,-500.0,0.00015904,2]
[382658029,1756697867923,-500.0,0.00015904,2]
[382658030,1756697867952,-342.38999814,0.00015904,2]
[382658031,1756697867979,-500.0,0.00015904,2]
[382658032,1756697868007,-202.92927744,0.00015904,2]
[382658033,1756697868034,-409.37144884,0.00015904,2]
[382658034,1756697868155,-90.62855116,0.00015904,2]
[382658035,1756697868184,-500.0,0.00015904,2]
[382658036,1756697868214,-500.0,0.00015904,2]
[382658037,1756697868245,-378.92441939,0.00015904,2]
[382658038,1756697868276,-500.0,0.00015904,2]
[382658039,1756697868305,-273.80125288,0.00015904,2]
[382658040,1756697868336,-263.58590762,0.00015904,2]
[382658041,1756697868364,-545.0741667,0.00015904,2]
[382658042,1756697868392,-500.0,0.00015904,2]
[382658043,1756697868422,-500.0,0.00015904,2]
[382658044,1756697868453,-500.0,0.00015904,2]
[382658045,1756697868483,-395.9814045,0.00015904,2]
[382658046,1756697868687,-104.0185955,0.00015904,2]
[382658047,1756697868716,-500.0,0.00015904,2]
[382658048,1756697868748,-500.0,0.00015904,2]
[382658049,1756697868780,-500.0,0.00015904,2]
[382658050,1756697868811,-500.0,0.00015904,2]
[382658051,1756697868839,-500.0,0.00015904,2]
[382658052,1756697868869,-500.0,0.00015904,2]
[382658053,1756697868897,-500.0,0.00015904,2]
[382658054,1756697868927,-500.0,0.00015904,2]
[382658055,1756697869127,-500.0,0.00015904,2]
[382658056,1756697869158,-291.972809,0.00015904,2]
[382658057,1756697869364,-208.027191,0.00015904,2]
[382658058,1756697869397,-500.0,0.00015904,2]
[382658059,1756697869430,-500.0,0.00015904,2]
[382658060,1756697869462,-500.0,0.00015904,2]
[382658061,1756697869496,-500.0,0.00015904,2]
[382658062,1756697869527,-500.0,0.00015904,2]
[382658063,1756697869563,-500.0,0.00015904,2]
[382658064,1756697869594,-500.0,0.00015904,2]
[382658065,1756697869633,-500.0,0.00015904,2]
[382658066,1756697869663,-650.11574188,0.00015904,2]
[382658067,1756697869744,-500.0,0.00015904,2]
[382658068,1756697869776,-500.0,0.00015904,2]
[382658069,1756697869810,-500.0,0.00015904,2]
[382658070,1756697869842,-500.0,0.00015904,2]
[382658071,1756697869873,-500.0,0.00015904,2]
[382658072,1756697869905,-500.0,0.00015904,2]
[382658073,1756697869934,-500.0,0.00015904,2]
[382658074,1756697869964,-500.0,0.00015904,2]
[382658075,1756697869996,-500.0,0.00015904,2]
[382658076,1756697870029,-353.94103821,0.00015904,2]
[382658077,1756697870213,-500.0,0.00015904,2]
[382658078,1756697870243,-500.0,0.00015904,2]
[382658079,1756697870273,-500.0,0.00015904,2]
[382658080,1756697870301,-480.0,0.00015904,2]
[382658081,1756697870329,-881.47,0.00015904,2]
[382658082,1756697870357,-482.0868748,0.00015904,2]
[382658083,1756697870386,-480.0,0.00015904,2]
[382658084,1756697870417,-1147.3562504,0.00015904,2]
[382658085,1756697870568,-58.1837496,0.00015904,2]
[382658086,1756697870599,-500.0,0.00015924,2]
[382658087,1756697870634,-500.0,0.00015924,2]
[382658088,1756697870666,-500.0,0.00015924,2]
[382658089,1756697870700,-500.0,0.00015924,2]
[382658090,1756697870732,-500.0,0.00015924,2]
[382658091,1756697870763,-518.56502905,0.00015924,2]
[382658092,1756697870792,-500.0,0.00015924,2]
[382658093,1756697870822,-500.0,0.00015924,2]
[382658094,1756697870852,-500.0,0.00015924,2]
[382658095,1756697870883,-346.5124427,0.00015924,2]
[382658096,1756697870987,-153.4875573,0.00015924,2]
[382658097,1756697871017,-500.0,0.00015924,2]
[382658098,1756697871048,-500.0,0.00015924,2]
[382658099,1756697871078,-206.42120819,0.00015924,2]
[382658100,1756697871108,-500.0,0.00015924,2]
[382658101,1756697871138,-400.0,0.00015924,2]
[382658102,1756697871168,-695.55,0.00015925,2]
[382658103,1756697871197,-480.0,0.00015925,2]